fUST/lending_fUST_20250819
["ID","MTS","AMOUNT","RATE_DAILY","PERIOD"]
[380147423,1755575445969,-316.38508977,0.0002,2]
[380147425,1755575445982,-1026.57,0.0002,2]
[380147427,1755575445994,-480.0,0.0002,2]
[380147429,1755575446008,-480.0,0.0002,2]
[380147432,1755575446020,-489.63,0.0002,2]
[380147434,1755575446032,-480.0,0.0002,2]
[380147436,1755575446044,-480.0,0.0002,2]
[380147438,1755575446056,-480.0,0.0002,2]
[380147441,1755575446069,-775.37,0.0002,2]
[380147443,1755575446081,-436.9989511,0.0002,2]
[380147445,1755575446093,-480.0,0.0002,2]
[380147447,1755575446105,-480.0,0.0002,2]
[380147448,1755575446118,-310.44327403,0.0002,2]
[380147449,1755575446131,-480.0,0.0002,2]
[380147450,1755575446143,-480.0,0.0002,2]
[380147451,1755575446155,-832.21,0.0002,2]
[380147452,1755575446169,-480.0,0.0002,2]
[380147453,1755575446178,-1361.96,0.0002,2]
[380147454,1755575446188,-480.0,0.0002,2]
[380147455,1755575446197,-394.59641165,0.0002,2]
[380147456,1755575446207,-905.94,0.0002,2]
[380147457,1755575446217,-480.0,0.0002,2]
[380147458,1755575446227,-1307.81,0.0002,2]
[380147459,1755575446238,-480.0,0.0002,2]
[380147460,1755575446248,-480.0,0.0002,2]
[380147461,1755575446261,-816.48,0.0002,2]
[380147462,1755575446271,-480.0,0.0002,2]
[380147463,1755575446281,-831.01,0.0002,2]
[380147464,1755575446290,-1296.29,0.0002,2]
[380147465,1755575446300,-480.0,0.0002,2]
[380147466,1755575446311,-480.0,0.0002,2]
[380147467,1755575446320,-1758.19,0.0002,2]
[380147469,1755575446330,-535.46,0.0002,2]
[380147470,1755575446508,-480.0,0.0002,2]
[380147471,1755575446518,-827.18,0.0002,2]
[380147472,1755575446528,-1295.8,0.0002,2]
[380147473,1755575446538,-551.02,0.0002,2]
[380147474,1755575446547,-480.0,0.0002,2]
[380147475,1755575446557,-668.42,0.0002,2]
[380147476,1755575446566,-480.0,0.0002,2]
[380147477,1755575446576,-510.7,0.0002,2]
[380147478,1755575446585,-480.0,0.0002,2]
[380147479,1755575446595,-480.0,0.0002,2]
[380147480,1755575446604,-480.0,0.0002,2]
[380147481,1755575446614,-480.0,0.0002,2]
[380147482,1755575446623,-480.0,0.0002,2]
[380147483,1755575446633,-2661.95,0.0002,2]
[380147484,1755575446643,-480.0,0.0002,2]
[380147485,1755575446652,-480.0,0.0002,2]
[380147486,1755575446662,-480.0,0.0002,2]
[380147487,1755575446671,-2087.49,0.0002,2]
[380147488,1755575446681,-803.31,0.0002,2]
[380147489,1755575446690,-480.0,0.0002,2]
[380147490,1755575446699,-480.0,0.0002,2]
[380147491,1755575446708,-505.65,0.0002,2]
[380147492,1755575446718,-480.0,0.0002,2]
[380147493,1755575446727,-170.45534424,0.0002,2]
[380147494,1755575446736,-522.0,0.0002,2]
[380147495,1755575446745,-547.21,0.0002,2]
[380147496,1755575446757,-1476.54,0.0002,2]
[380147497,1755575446766,-480.0,0.0002,2]
[380147498,1755575446775,-4819.17,0.0002,2]
[380147499,1755575446784,-851.83,0.0002,2]
[380147500,1755575446793,-480.0,0.0002,2]
[380147501,1755575446802,-689.64,0.0002,2]
[380147502,1755575446811,-583.43,0.0002,2]
[380147503,1755575446819,-741.01,0.0002,2]
[380147504,1755575446828,-647.65,0.0002,2]
[380147505,1755575446837,-480.0,0.0002,2]
[380147506,1755575446846,-307.12425117,0.0002,2]
[380147507,1755575446855,-480.0,0.0002,2]
[380147508,1755575446864,-480.0,0.0002,2]
[380147509,1755575446874,-480.0,0.0002,2]
[380147510,1755575446883,-9.77667773,0.0002,2]
[380147511,1755575446903,-480.0,0.00019726,2]
[380147512,1755575446913,-419.99999997,0.0002,2]
[380147513,1755575446928,-50.2233223,0.0002,2]
[380147514,1755575446937,-805.89,0.0002,2]
[380147515,1755575446946,-550.06,0.0002,2]
[380147516,1755575446956,-160.0,0.0002,3]
[380147517,1755575446965,-1917.84,0.0002,2]
[380147518,1755575446974,-480.0,0.0002,2]
[380147519,1755575446983,-480.0,0.0002,2]
[380147520,1755575446991,-2950.2,0.0002,2]
[380147521,1755575447000,-453.22983838,0.0002,2]
[380147522,1755575447011,-633.44,0.0002,2]
[380147523,1755575447020,-915.28,0.0002,2]
[380147524,1755575447029,-480.0,0.0002,2]
[380147525,1755575447038,-480.0,0.0002,2]
[380147526,1755575447047,-480.0,0.0002,2]
[380147527,1755575447055,-634.79,0.0002,2]
[380147528,1755575447065,-480.0,0.0002,2]
[380147529,1755575447074,-1201.0,0.0002,2]
[380147530,1755575447083,-527.39012482,0.0002,2]
[380147531,1755575447092,-516.35,0.0002,2]
[380147532,1755575447101,-480.0,0.0002,2]
[380147533,1755575447111,-179.71246006,0.00020049,2]
[380147534,1755575447121,-441.39373102,0.0002005,2]
[380147535,1755575447130,-151.0,0.000201,4]
[380147536,1755575447140,-972.0,0.0002015,2]
[380147537,1755575447149,-637.0,0.0002015,2]
[380147538,1755575447160,-2153.0,0.0002015,2]
[380147539,1755575447169,-250.0,0.0002015,2]
[380147540,1755575447178,-177.65399804,0.00020173,2]
[380147541,1755575447188,-160.0,0.00020196,3]
[380147542,1755575447198,-160.0,0.00020196,5]
[380147543,1755575447207,-3125.8576325,0.00020207,2]
[380147544,1755575447217,-535.53009605,0.00020244,2]
[380147545,1755575447230,-480.0,0.00020263,2]
[380147546,1755575447240,-717.31,0.00020263,2]
[380147547,1755575447249,-3842.99,0.00020263,2]
[380147548,1755575447261,-474.49621544,0.00020263,2]
[380147549,1755575447271,-1729.71,0.00020263,2]
[380147550,1755575447280,-480.0,0.00020263,2]
[380147551,1755575447290,-650.57,0.00020263,2]
[380147552,1755575447300,-480.0,0.00020263,2]
[380147553,1755575447310,-480.0,0.00020263,2]
[380147554,1755575447319,-827.41,0.00020263,2]
[380147555,1755575447328,-255.60892907,0.00020272,2]
[380147556,1755575447338,-480.0,0.00020273,2]
[380147557,1755575447348,-480.0,0.00020273,2]
[380147558,1755575447357,-480.0,0.00020273,2]
[380147559,1755575447367,-480.0,0.00020273,2]
[380147560,1755575447376,-582.26801741,0.00020273,2]
[380147561,1755575447385,-5784.04,0.00020273,2]
[380147562,1755575447395,-480.0,0.00020273,2]
[380147563,1755575447404,-485.48,0.00020273,2]
[380147564,1755575447414,-480.0,0.00020273,2]
[380147565,1755575447423,-1361.6,0.00020273,2]
[380147566,1755575447433,-664.72,0.00020273,2]
[380147567,1755575447442,-480.0,0.00020273,2]
[380147568,1755575447451,-480.0,0.00020273,2]
[380147569,1755575447462,-613.49,0.00020273,2]
[380147570,1755575447471,-480.0,0.00020273,2]
[380147571,1755575447480,-480.0,0.00020273,2]
[380147572,1755575447490,-480.0,0.00020273,2]
[380147573,1755575447500,-480.0,0.00020273,2]
[380147574,1755575447513,-480.0,0.00020273,2]
[380147575,1755575447522,-480.0,0.00020273,2]
[380147576,1755575447532,-3111.06,0.00020273,2]
[380147577,1755575447541,-197.623504,0.00020273,2]
[380147578,1755575447550,-480.0,0.00020273,2]
[380147579,1755575447559,-480.0,0.00020273,2]
[380147580,1755575447568,-666.39,0.00020273,2]
[380147581,1755575447578,-480.0,0.00020273,2]
[380147582,1755575447588,-1026.57,0.00020273,2]
[380147583,1755575447597,-480.0,0.00020273,2]
[380147584,1755575447607,-480.0,0.00020273,2]
[380147585,1755575447617,-489.63,0.00020273,2]
[380147586,1755575447626,-480.0,0.00020273,2]
[380147587,1755575447636,-480.0,0.00020273,2]
[380147588,1755575447645,-480.0,0.00020273,2]
[380147589,1755575447655,-775.37,0.00020273,2]
[380147590,1755575447664,-480.0,0.00020273,2]
[380147591,1755575447673,-480.0,0.00020273,2]
[380147592,1755575447683,-480.0,0.00020273,2]
[380147593,1755575447693,-480.0,0.00020273,2]
[380147594,1755575447702,-832.21,0.00020273,2]
[380147595,1755575447712,-480.0,0.00020273,2]
[380147596,1755575447721,-1361.96,0.00020273,2]
[380147597,1755575447731,-480.0,0.00020273,2]
[380147598,1755575447740,-905.94,0.00020273,2]
[380147599,1755575447750,-480.0,0.00020273,2]
[380147600,1755575447763,-1307.81,0.00020273,2]
[380147601,1755575447772,-480.0,0.00020273,2]
[380147602,1755575447782,-480.0,0.00020273,2]
[380147603,1755575447793,-816.48,0.00020273,2]
[380147604,1755575447802,-480.0,0.00020273,2]
[380147605,1755575447812,-831.01,0.00020273,2]
[380147606,1755575447822,-1296.29,0.00020273,2]
[380147607,1755575447831,-480.0,0.00020273,2]
[380147608,1755575447841,-480.0,0.00020273,2]
[380147609,1755575447850,-1758.19,0.00020273,2]
[380147610,1755575447859,-535.46,0.00020273,2]
[380147611,1755575447868,-480.0,0.00020273,2]
[380147612,1755575447878,-827.18,0.00020273,2]
[380147613,1755575447887,-1295.8,0.00020273,2]
[380147614,1755575447898,-551.02,0.00020273,2]
[380147615,1755575447907,-189.02616,0.00020273,2]
[380147616,1755575447917,-668.42,0.00020273,2]
[380147617,1755575447927,-480.0,0.00020273,2]
[380147618,1755575447936,-510.7,0.00020273,2]
[380147619,1755575447945,-469.19614201,0.00020273,2]
[380147620,1755575447955,-384.36017235,0.00020273,2]
[380147621,1755575447965,-480.0,0.00020273,2]
[380147622,1755575447975,-480.0,0.00020273,2]
[380147623,1755575447985,-2661.95,0.00020273,2]
[380147624,1755575447994,-486.82875231,0.00020273,2]
[380147625,1755575448004,-480.0,0.00020273,2]
[380147626,1755575448015,-480.0,0.00020273,2]
[380147627,1755575448024,-2087.49,0.00020273,2]
[380147628,1755575448034,-803.31,0.00020273,2]
[380147629,1755575448043,-339.34994637,0.00020273,2]
[380147630,1755575448124,-463.98850853,0.00019178,2]
[380147631,1755575448135,-480.0,0.00019178,2]
[380147632,1755575448145,-315.67,0.0002,2]
[380147633,1755575448155,-140.65005363,0.00020273,2]
[380147634,1755575448164,-480.0,0.00020273,2]
[380147635,1755575448174,-505.65,0.00020273,2]
[380147636,1755575448183,-1.91692322,0.00020273,2]
[380147637,1755575448195,-478.08307678,0.00020273,2]
[380147638,1755575448204,-103.10686605,0.00020273,2]
[380147701,1755576272347,159.266538,0.00013699,2]
[380147702,1755576350305,-282.63419851,0.000189,2]
[380147704,1755576426090,-417.3368759,0.000189,2]
[380147705,1755576426112,-274.69140914,0.00019078,2]
[380147710,1755576437112,-20.48572852,0.00019078,2]
[380147711,1755576437133,-1084.17757514,0.00019078,2]
[380147742,1755576635629,-466.64738294,0.000189,2]
[380147744,1755576635639,-236.14171016,0.00019078,2]
[380147745,1755576635648,-2208.8710275,0.00019078,2]
[380147746,1755576635657,-762.74544795,0.00019078,2]
[380147747,1755576635667,-1200.0,0.00019172,2]
[380147748,1755576635676,-58.7050124,0.00019173,2]
[380147749,1755576635688,-456.54472305,0.00019173,2]
[380147750,1755576635697,-500.0,0.00019173,2]
[380147751,1755576635706,-211.0,0.00019174,2]
[380147752,1755576635716,-300.0,0.00019174,2]
[380147753,1755576635725,-210.0,0.00019174,2]
[380147754,1755576635734,-300.0,0.00019174,2]
[380147756,1755576635743,-15450.28839615,0.00019177,2]
[380147757,1755576635752,-500.0,0.00019177,2]
[380147758,1755576635761,-333.37278112,0.00019177,2]
[380147759,1755576635770,-156.78357481,0.00019177,2]
[380147760,1755576635780,-480.0,0.00019178,2]
[380147761,1755576635789,-480.0,0.00019178,2]
[380147762,1755576635798,-483.86803976,0.00019178,2]
[380147763,1755576635808,-480.0,0.00019178,2]
[380147764,1755576635820,-480.0,0.00019178,2]
[380147765,1755576635829,-480.0,0.00019178,2]
[380147766,1755576635838,-480.0,0.00019178,2]
[380147767,1755576635848,-480.0,0.00019178,2]
[380147768,1755576635857,-442.57832562,0.00019178,2]
[380147769,1755576635867,-480.0,0.00019178,2]
[380147770,1755576635876,-480.0,0.00019178,2]
[380147771,1755576635885,-480.0,0.00019178,2]
[380147772,1755576635895,-480.0,0.00019178,2]
[380147773,1755576635904,-480.0,0.00019178,2]
[380147774,1755576635913,-480.0,0.00019178,2]
[380147775,1755576635922,-480.0,0.00019178,2]
[380147776,1755576635932,-480.0,0.00019178,2]
[380147777,1755576635940,-480.0,0.00019178,2]
[380147778,1755576635950,-480.0,0.00019178,2]
[380147779,1755576635960,-480.0,0.00019178,2]
[380147780,1755576635969,-480.0,0.00019178,2]
[380147781,1755576635978,-2644.05,0.00019178,2]
[380147782,1755576635987,-243.22238701,0.00019178,2]
[380147783,1755576635996,-480.0,0.00019178,2]
[380147784,1755576636005,-480.0,0.00019178,2]
[380147785,1755576636014,-480.0,0.00019178,2]
[380147786,1755576636023,-480.0,0.00019178,2]
[380147787,1755576636033,-480.0,0.00019178,2]
[380147788,1755576636042,-480.0,0.00019178,2]
[380147789,1755576636052,-480.0,0.00019178,2]
[380147790,1755576636061,-480.0,0.00019178,2]
[380147791,1755576636073,-480.0,0.00019178,2]
[380147792,1755576636082,-480.0,0.00019178,2]
[380147793,1755576636091,-590.11,0.00019178,2]
[380147794,1755576636100,-623.39,0.00019178,2]
[380147795,1755576636223,-480.0,0.00019178,2]
[380147796,1755576636233,-480.0,0.00019178,2]
[380147797,1755576636242,-480.0,0.00019178,2]
[380147798,1755576636251,-480.0,0.00019178,2]
[380147799,1755576636261,-605.08,0.00019178,2]
[380147800,1755576636270,-1935.73,0.00019178,2]
[380147801,1755576636279,-480.0,0.00019178,2]
[380147802,1755576636289,-480.0,0.00019178,2]
[380147803,1755576636299,-480.0,0.00019178,2]
[380147804,1755576636309,-480.0,0.00019178,2]
[380147805,1755576636319,-480.0,0.00019178,2]
[380147806,1755576636329,-480.0,0.00019178,2]
[380147807,1755576636340,-480.0,0.00019178,2]
[380147808,1755576636351,-183.47310901,0.00019178,2]
[380147817,1755576638570,-296.52689099,0.00019178,2]
[380147818,1755576638582,-442.81262063,0.00019178,2]
[380147819,1755576638591,-480.0,0.00019178,2]
[380147820,1755576638600,-480.0,0.00019178,2]
[380147821,1755576638609,-480.0,0.00019178,2]
[380147822,1755576638619,-480.0,0.00019178,2]
[380147823,1755576638629,-480.0,0.00019178,2]
[380147824,1755576638638,-480.0,0.00019178,2]
[380147825,1755576638648,-480.0,0.00019178,2]
[380147826,1755576638658,-611.81,0.00019178,2]
[380147827,1755576638667,-209.36507198,0.00019178,2]
[380147828,1755576638676,-480.0,0.00019178,2]
[380147830,1755576638686,-480.0,0.00019178,2]
[380147831,1755576638695,-943.42,0.00019178,2]
[380147832,1755576638704,-480.0,0.00019178,2]
[380147833,1755576638713,-470.02391181,0.00019178,2]
[380147834,1755576638723,-480.0,0.00019178,2]
[380147835,1755576638732,-480.0,0.00019178,2]
[380147836,1755576638741,-480.0,0.00019178,2]
[380147837,1755576638750,-480.0,0.00019178,2]
[380147838,1755576638760,-480.0,0.00019178,2]
[380147839,1755576638769,-486.61688021,0.00019178,2]
[380147840,1755576638778,-278.66220464,0.00019178,2]
[380147841,1755576638790,-221.33779536,0.00019178,2]
[380147842,1755576638799,-433.45191139,0.00019178,2]
[380147843,1755576638809,-480.0,0.00019178,2]
[380147844,1755576638818,-480.0,0.00019178,2]
[380147845,1755576638830,-480.0,0.00019178,2]
[380147846,1755576638839,-480.0,0.00019178,2]
[380147847,1755576638849,-480.0,0.00019178,2]
[380147848,1755576638858,-480.0,0.00019178,2]
[380147849,1755576638867,-480.0,0.00019178,2]
[380147850,1755576638878,-480.0,0.00019178,2]
[380147851,1755576638887,-480.0,0.00019178,2]
[380147852,1755576638896,-713.99,0.00019178,2]
[380147853,1755576638906,-480.0,0.00019178,2]
[380147854,1755576638915,-692.39,0.00019178,2]
[380147855,1755576638924,-480.0,0.00019178,2]
[380147856,1755576638933,-481.85507194,0.00019178,2]
[380147857,1755576638943,-480.0,0.00019178,2]
[380147858,1755576638952,-444.56625445,0.00019178,2]
[380147859,1755576638961,-480.0,0.00019178,2]
[380147860,1755576638971,-441.78061503,0.00019178,2]
[380147861,1755576638980,-441.07452121,0.00019178,2]
[380147862,1755576638989,-480.0,0.00019178,2]
[380147863,1755576638999,-480.0,0.00019178,2]
[380147864,1755576639009,-480.0,0.00019178,2]
[380147865,1755576639018,-480.0,0.00019178,2]
[380147866,1755576639028,-1669.04,0.00019178,2]
[380147867,1755576639037,-480.0,0.00019178,2]
[380147868,1755576639046,-480.0,0.00019178,2]
[380147869,1755576639056,-480.0,0.00019178,2]
[380147870,1755576639066,-480.0,0.00019178,2]
[380147871,1755576639077,-481.31023006,0.00019178,2]
[380147872,1755576639086,-480.0,0.00019178,2]
[380147873,1755576639095,-371.4002432,0.00019178,2]
[380147874,1755576639104,-480.0,0.00019178,2]
[380147875,1755576639114,-164.30526476,0.00019178,2]
[380147876,1755576639123,-480.0,0.00019178,2]
[380147877,1755576639132,-860.91,0.00019178,2]
[380147879,1755576639141,-480.0,0.00019178,2]
[380147881,1755576639150,-480.0,0.00019178,2]
[380147883,1755576639159,-463.0569653,0.00019178,2]
[380147885,1755576639169,-480.0,0.00019178,2]
[380147887,1755576639178,-480.0,0.00019178,2]
[380147889,1755576639187,-480.0,0.00019178,2]
[380147891,1755576639196,-808.67,0.00019178,2]
[380147893,1755576639205,-480.0,0.00019178,2]
[380147895,1755576639214,-480.0,0.00019178,2]
[380147896,1755576639223,-403.20127011,0.00019178,2]
[380147898,1755576639232,-804.42,0.00019178,2]
[380147900,1755576639241,-450.75694331,0.00019178,2]
[380147902,1755576639250,-480.0,0.00019178,2]
[380147904,1755576639259,-441.38130171,0.00019178,2]
[380147906,1755576639269,-480.0,0.00019178,2]
[380147908,1755576639278,-1152.14,0.00019178,2]
[380147910,1755576639287,-480.0,0.00019178,2]
[380147912,1755576639297,-362.82984779,0.00019178,2]
[380147914,1755576639306,-480.0,0.00019178,2]
[380147916,1755576639315,-480.0,0.00019178,2]
[380147918,1755576639324,-509.31,0.00019178,2]
[380147920,1755576639333,-775.43,0.00019178,2]
[380147922,1755576639342,-480.0,0.00019178,2]
[380147924,1755576639351,-480.0,0.00019178,2]
[380147926,1755576639361,-480.0,0.00019178,2]
[380147928,1755576639370,-480.0,0.00019178,2]
[380147930,1755576639379,-480.0,0.00019178,2]
[380147932,1755576639389,-1809.81,0.00019178,2]
[380147934,1755576639398,-480.0,0.00019178,2]
[380147936,1755576639408,-365.39021275,0.00019178,2]
[380147938,1755576639417,-827.84,0.00019178,2]
[380147940,1755576639428,-1110.32,0.00019178,2]
[380147941,1755576639438,-798.28,0.00019178,2]
[380147942,1755576639447,-480.0,0.00019178,2]
[380147943,1755576639457,-1221.58,0.00019178,2]
[380147945,1755576639467,-480.0,0.00019178,2]
[380147946,1755576639476,-417.14854858,0.00019178,2]
[380147947,1755576639485,-480.0,0.00019178,2]
[380147948,1755576639495,-480.0,0.00019178,2]
[380147949,1755576639505,-604.87,0.00019178,2]
[380147951,1755576639514,-449.18380249,0.00019178,2]
[380147953,1755576639523,-542.15239909,0.00019178,2]
[380147955,1755576639531,-480.0,0.00019178,2]
[380147957,1755576639542,-480.0,0.00019178,2]
[380147959,1755576639551,-353.98046352,0.00019178,2]
[380147960,1755576639562,-480.0,0.00019178,2]
[380147961,1755576639574,-3735.84,0.00019178,2]
[380147962,1755576639583,-480.0,0.00019178,2]
[380147963,1755576639592,-482.07381709,0.00019178,2]
[380147964,1755576639602,-2384.61,0.00019178,2]
[380147965,1755576639611,-480.0,0.00019178,2]
[380147966,1755576639621,-1651.77,0.00019178,2]
[380147967,1755576639632,-480.0,0.00019178,2]
[380147968,1755576639641,-480.0,0.00019178,2]
[380147969,1755576639651,-482.85844728,0.00019178,2]
[380147970,1755576639661,-491.99556271,0.00019178,2]
[380147971,1755576639670,-1864.35,0.00019178,2]
[380147972,1755576639679,-480.0,0.00019178,2]
[380147973,1755576639689,-480.0,0.00019178,2]
[380147974,1755576639698,-480.0,0.00019178,2]
[380147975,1755576639708,-707.33,0.00019178,2]
[380147976,1755576639717,-480.0,0.00019178,2]
[380147977,1755576639726,-480.0,0.00019178,2]
[380147978,1755576639737,-751.3,0.00019178,2]
[380147979,1755576639746,-480.0,0.00019178,2]
[380147980,1755576639756,-480.0,0.00019178,2]
[380147981,1755576639765,-480.0,0.00019178,2]
[380147982,1755576639775,-480.0,0.00019178,2]
[380147983,1755576639784,-480.0,0.00019178,2]
[380147984,1755576639793,-480.0,0.00019178,2]
[380147985,1755576639803,-480.0,0.00019178,2]
[380147986,1755576639812,-480.0,0.00019178,2]
[380147987,1755576639821,-511.83,0.00019178,2]
[380147988,1755576639831,-480.0,0.00019178,2]
[380147989,1755576639840,-1257.65,0.00019178,2]
[380147990,1755576639849,-659.57,0.00019178,2]
[380147991,1755576639859,-480.0,0.00019178,2]
[380147992,1755576639868,-1808.25,0.00019178,2]
[380147993,1755576639877,-480.0,0.00019178,2]
[380147994,1755576639886,-480.0,0.00019178,2]
[380147995,1755576639896,-480.0,0.00019178,2]
[380147996,1755576639905,-610.61,0.00019178,2]
[380147997,1755576639914,-480.0,0.00019178,2]
[380147998,1755576639923,-4750.53,0.00019178,2]
[380147999,1755576639932,-480.0,0.00019178,2]
[380148000,1755576639942,-480.0,0.00019178,2]
[380148001,1755576639951,-480.0,0.00019178,2]
[380148002,1755576639960,-538.13,0.00019178,2]
[380148003,1755576639969,-765.35,0.00019178,2]
[380148005,1755576639978,-1813.41,0.00019178,2]
[380148006,1755576639987,-606.92055696,0.00019178,2]
[380148007,1755576639996,-480.0,0.00019178,2]
[380148008,1755576640005,-555.44,0.00019178,2]
[380148009,1755576640015,-480.0,0.00019178,2]
[380148010,1755576640024,-642.65,0.00019178,2]
[380148011,1755576640033,-415.42394743,0.00019178,2]
[380148013,1755576640042,-480.0,0.00019178,2]
[380148014,1755576640052,-480.0,0.00019178,2]
[380148015,1755576640062,-480.0,0.00019178,2]
[380148016,1755576640071,-480.0,0.00019178,2]
[380148017,1755576640082,-587.69090009,0.00019178,2]
[380148018,1755576640091,-480.0,0.00019178,2]
[380148019,1755576640101,-480.0,0.00019178,2]
[380148020,1755576640110,-517.26,0.00019178,2]
[380148021,1755576640120,-537.56,0.00019178,2]
[380148022,1755576640129,-500.0,0.00019178,2]
[380148023,1755576640139,-500.0,0.00019178,2]
[380148024,1755576640148,-506.24,0.00019178,2]
[380148025,1755576640157,-819.46,0.00019178,2]
[380148026,1755576640167,-5651.17,0.00019178,2]
[380148027,1755576640176,-666.0,0.00019178,2]
[380148028,1755576640186,-500.0,0.00019178,2]
[380148029,1755576640195,-250.14,0.0001919,2]
[380148030,1755576640204,-55501.44751991,0.00019329,2]
[380148031,1755576640214,-236.14171012,0.0001942,2]
[380148032,1755576640223,-566.4,0.00019451,2]
[380148033,1755576640232,-480.0,0.00019452,2]
[380148034,1755576640242,-480.0,0.00019452,2]
[380148035,1755576640251,-480.0,0.00019452,2]
[380148036,1755576640261,-480.0,0.00019452,2]
[380148037,1755576640270,-480.0,0.00019452,2]
[380148038,1755576640279,-480.0,0.00019452,2]
[380148039,1755576640289,-480.0,0.00019452,2]
[380148040,1755576640298,-485.87073938,0.00019452,2]
[380148041,1755576640308,-225.59694148,0.00019452,2]
[380148042,1755576640318,-2644.05,0.00019452,2]
[380148043,1755576640419,-480.0,0.00019452,2]
[380148045,1755576640430,-480.0,0.00019452,2]
[380148046,1755576640439,-480.0,0.00019452,2]
[380148047,1755576640449,-480.0,0.00019452,2]
[380148048,1755576640459,-480.0,0.00019452,2]
[380148049,1755576640468,-480.0,0.00019452,2]
[380148050,1755576640477,-480.0,0.00019452,2]
[380148052,1755576640487,-480.0,0.00019452,2]
[380148054,1755576640496,-590.11,0.00019452,2]
[380148056,1755576640505,-623.39,0.00019452,2]
[380148058,1755576640515,-480.0,0.00019452,2]
[380148060,1755576640524,-480.0,0.00019452,2]
[380148062,1755576640533,-480.0,0.00019452,2]
[380148064,1755576640542,-480.0,0.00019452,2]
[380148066,1755576640552,-605.08,0.00019452,2]
[380148068,1755576640561,-1935.73,0.00019452,2]
[380148070,1755576640576,-480.0,0.00019452,2]
[380148072,1755576640585,-480.0,0.00019452,2]
[380148074,1755576640594,-480.0,0.00019452,2]
[380148076,1755576640604,-480.0,0.00019452,2]
[380148078,1755576640614,-480.0,0.00019452,2]
[380148080,1755576640624,-480.0,0.00019452,2]
[380148082,1755576640633,-480.0,0.00019452,2]
[380148084,1755576640643,-480.0,0.00019452,2]
[380148085,1755576640652,-480.0,0.00019452,2]
[380148087,1755576640662,-480.0,0.00019452,2]
[380148089,1755576640671,-480.0,0.00019452,2]
[380148091,1755576640680,-480.0,0.00019452,2]
[380148093,1755576640689,-480.0,0.00019452,2]
[380148095,1755576640698,-480.0,0.00019452,2]
[380148097,1755576640707,-611.81,0.00019452,2]
[380148099,1755576640716,-480.0,0.00019452,2]
[380148101,1755576640726,-943.42,0.00019452,2]
[380148103,1755576640735,-480.0,0.00019452,2]
[380148105,1755576640745,-480.0,0.00019452,2]
[380148107,1755576640754,-480.0,0.00019452,2]
[380148109,1755576640763,-480.0,0.00019452,2]
[380148111,1755576640773,-480.0,0.00019452,2]
[380148113,1755576640782,-480.0,0.00019452,2]
[380148115,1755576640790,-480.0,0.00019452,2]
[380148117,1755576640800,-480.0,0.00019452,2]